bitfinex/quotes_BTCUSD_20251221
["timestamp","ask_amount","ask_price","bid_price","bid_amount"]
[1766308572176,0.11788,88804.0,88789.0,0.31333876]
[1766308572375,0.00584,88807.0,88792.0,0.01126227]
[1766308572622,0.00584,88807.0,88793.0,0.01126214]
[1766308572834,0.00584,88807.0,88794.0,0.03045644]
[1766308573055,0.00584,88807.0,88794.0,0.01919442]
[1766308573186,0.00025644,88802.0,88794.0,0.01919442]
[1766308573394,0.00055099,88795.0,88794.0,0.01919442]
[1766308573593,1.99e-06,88795.0,88794.0,0.01919442]
[1766308573790,0.01146024,88808.0,88794.0,0.01919442]
[1766308573791,0.01146024,88808.0,88805.0,0.06756364]
[1766308573792,1e-08,88808.0,88805.0,0.06756364]
[1766308574069,0.0002,88829.0,88800.0,0.22522313]
[1766308574070,0.0002,88829.0,88821.0,0.05629276]
[1766308574241,0.0002,88829.0,88824.0,0.01125821]
[1766308574242,0.00025642,88829.0,88824.0,0.01125821]
[1766308574460,4.2e-07,88829.0,88827.0,0.05628895]
[1766308574613,4.2e-07,88829.0,88826.0,0.01125796]
[1766308575236,4.2e-07,88829.0,88824.0,0.01125821]
[1766308575237,0.01125593,88842.0,88823.0,0.01125834]
[1766308575460,0.01145606,88841.0,88825.0,0.01125809]
[1766308575984,0.01145606,88841.0,88824.0,0.01125821]
[1766308576201,0.01125619,88840.0,88822.0,0.01693847]
[1766308576519,0.01125619,88840.0,88823.0,0.01125834]
[1766308576817,0.01125631,88839.0,88823.0,0.01125834]
[1766308577023,0.00807631,88839.0,88823.0,0.01125834]
[1766308577321,0.01125619,88840.0,88823.0,0.01125834]
[1766308577560,0.01125707,88833.0,88819.0,0.05856581]
[1766308577754,0.11788,88830.0,88820.0,0.00568]
[1766308578811,0.11788,88830.0,88821.0,0.00568]
[1766308580251,0.01125809,88825.0,88819.0,5.642e-05]
[1766308580455,0.01125859,88821.0,88806.0,0.0112605]
[1766308580634,0.00076496,88820.0,88807.0,0.01694037]
[1766308580832,0.00076496,88820.0,88811.0,0.01125986]
[1766308581153,0.0112572,88832.0,88816.0,0.01125923]
[1766308581377,0.11798724,88832.0,88817.0,0.0169391]
[1766308581578,0.11798724,88832.0,88817.0,0.00568]
[1766308581924,0.00010724,88832.0,88817.0,0.0169391]
[1766308582142,0.01125745,88830.0,88817.0,0.00568]
[1766308582356,0.01136444,88832.0,88817.0,0.00568]
[1766308582592,0.01136444,88832.0,88812.0,0.05629842]
[1766308582593,0.216,88826.0,88818.0,0.01919077]
[1766308582807,0.01125885,88819.0,88817.0,0.00568]
[1766308583020,0.01125885,88819.0,88806.0,0.04508]
[1766308583021,0.0112591,88817.0,88806.0,0.04508]
[1766308583222,0.06755327,88819.0,88801.0,0.01126113]
[1766308583223,0.01125897,88818.0,88801.0,0.01126113]
[1766308583437,0.00064911,88820.0,88808.0,0.31343876]
[1766308583710,0.00010724,88832.0,88814.0,0.01125948]
[1766308583909,0.01125733,88831.0,88820.0,0.00055]
[1766308584116,0.01136444,88832.0,88820.0,0.00623]
[1766308584272,0.01136444,88832.0,88820.0,0.00568]
[1766308584475,0.01190644,88831.0,88820.0,0.00568]
[1766308584672,0.00010724,88832.0,88820.0,0.00568]
[1766308584891,0.00075635,88832.0,88820.0,0.00568]
[1766308585132,0.01125733,88831.0,88820.0,0.00568]
[1766308585507,0.00075635,88832.0,88820.0,0.00568]
[1766308585709,0.01125733,88831.0,88820.0,0.00568]
[1766308586113,0.00010724,88832.0,88820.0,0.00568]
[1766308586314,0.00010724,88832.0,88823.0,0.01125834]
[1766308586732,0.00010724,88832.0,88826.0,0.01125796]
[1766308586896,2.4e-07,88832.0,88827.0,0.00568]
[1766308587920,2.4e-07,88832.0,88766.0,0.21587784]
[1766308587921,0.000207,88827.0,88812.0,0.01125973]
[1766308588125,0.000207,88827.0,88815.0,0.01125935]
[1766308588440,0.00024769,88823.0,88816.0,0.01125923]
[1766308588644,0.00024769,88823.0,88819.0,0.01125885]
[1766308588645,6.9e-07,88823.0,88819.0,0.01125885]
[1766308588827,6.9e-07,88823.0,88820.0,0.00568]
[1766308589248,6.9e-07,88823.0,88820.0,0.01693872]
[1766308589604,6.9e-07,88823.0,88820.0,0.00568]
[1766308589809,6.9e-07,88823.0,88821.0,0.00568]
[1766308590088,6.9e-07,88823.0,88822.0,0.00568]
[1766308590408,6.9e-07,88823.0,88822.0,0.005226]
[1766308595392,6.9e-07,88823.0,88822.0,0.00564]
[1766308612454,6.9e-07,88823.0,88822.0,0.06193236]
[1766308612584,6.9e-07,88823.0,88822.0,0.07544252]
[1766308612796,6.9e-07,88823.0,88822.0,0.06193236]
[1766308613314,6.9e-07,88823.0,88822.0,0.00564]
[1766308614117,6.9e-07,88823.0,88820.0,0.02977432]
[1766308614375,6.9e-07,88823.0,88815.0,0.03970631]
[1766308614376,6.9e-07,88823.0,88821.0,0.00564]
[1766308614574,6.9e-07,88823.0,88822.0,0.00564]
[1766308620144,6.9e-07,88823.0,88822.0,0.06193236]
[1766308621181,0.0002,88841.0,88830.0,0.01125745]
[1766308621376,0.0002,88841.0,88831.0,0.00564]
[1766308621577,0.0002,88841.0,88833.0,0.01125707]
[1766308621921,0.05627238,88854.0,88835.0,0.01125682]
[1766308621922,0.16420539,88852.0,88835.0,0.01125682]
[1766308622125,0.11697,88851.0,88836.0,0.01914803]
[1766308622257,0.11697,88851.0,88836.0,0.03040472]
[1766308622460,0.11697,88850.0,88836.0,0.01914803]
[1766308622658,0.11697,88850.0,88836.0,0.00564]
[1766308622659,0.12822505,88849.0,88836.0,0.00564]
[1766308622856,0.00042823,88837.0,88836.0,0.00564]
[1766308623060,7.923e-05,88837.0,88836.0,0.00544]
[1766308624317,7.923e-05,88837.0,88824.0,0.06754912]
[1766308624458,0.01125568,88844.0,88828.0,0.01125771]
[1766308624659,0.22489,88846.0,88825.0,0.00564]
[1766308624925,0.01125619,88840.0,88825.0,0.00564]
[1766308625211,0.01125631,88839.0,88825.0,0.00564]
[1766308625413,0.01125606,88841.0,88825.0,0.00564]
[1766308625620,0.01125619,88840.0,88825.0,0.01689809]
[1766308625798,0.01125606,88841.0,88825.0,0.01689809]
[1766308626805,0.05627968,88842.0,88825.0,0.00564]
[1766308627018,0.01125606,88841.0,88825.0,0.00564]
[1766308627218,0.06753715,88840.0,88825.0,0.00564]
[1766308627559,0.01125631,88839.0,88825.0,0.00564]
[1766308627688,0.01125644,88838.0,88822.0,0.02977432]
[1766308627893,0.01125644,88838.0,88826.0,0.00564]
[1766308627894,0.01125669,88836.0,88826.0,0.00564]
[1766308628080,0.01125695,88834.0,88827.0,0.00564]
[1766308628277,0.0112572,88832.0,88827.0,0.00564]
[1766308628636,0.01125695,88834.0,88827.0,0.00564]
[1766308628833,0.01125682,88835.0,88828.0,0.00564]
[1766308629134,0.01125682,88835.0,88828.0,0.005291]
[1766308629442,0.01125695,88834.0,88828.0,0.005291]
[1766308629642,0.01125682,88835.0,88828.0,0.005291]
[1766308629997,0.01125682,88835.0,88827.0,0.00564]
[1766308630401,0.01125669,88836.0,88827.0,0.00564]
[1766308630620,0.01125682,88835.0,88827.0,0.00564]
[1766308631021,0.12485669,88836.0,88827.0,0.00564]
[1766308631225,0.1136,88836.0,88827.0,0.00564]
[1766308631405,0.1136,88837.0,88822.0,0.00010724]
[1766308631625,0.12485657,88837.0,88823.0,0.00564]
[1766308631831,0.1136,88837.0,88823.0,0.00564]
[1766308632253,0.21853,88838.0,88823.0,0.00564]
[1766308632674,0.21853,88838.0,88824.0,0.01125821]
[1766308632879,0.21853,88838.0,88823.0,0.01689834]
[1766308633092,0.22978644,88838.0,88823.0,0.01689834]
[1766308633293,0.21853,88838.0,88823.0,0.01689834]
[1766308633632,0.21853,88838.0,88824.0,0.01125821]
[1766308633837,0.21853,88838.0,88823.0,0.01689834]
[1766308634530,0.21853,88838.0,88825.0,0.01125809]
[1766308634755,0.21853,88838.0,88823.0,0.01689834]
[1766308635172,0.21853,88838.0,88825.0,0.01125809]
[1766308635403,0.21853,88838.0,88826.0,0.01125796]
[1766308635736,0.21853,88838.0,88825.0,0.01125809]
[1766308637440,0.21853,88838.0,88824.0,0.01125821]
[1766308638095,0.21853,88838.0,88823.0,0.01689834]
[1766308638302,0.21853,88838.0,88825.0,0.01125809]
[1766308639238,0.21853,88838.0,88824.0,0.01125821]
[1766308639769,0.21853,88838.0,88825.0,0.01125809]
[1766308640856,0.21853,88838.0,88824.0,0.01125821]
[1766308641079,0.0059027,88843.0,88838.0,0.000549]
[1766308641712,0.0059027,88843.0,88829.0,0.06192769]
[1766308641713,0.0059027,88843.0,88831.0,0.01125733]
[1766308642084,0.0059027,88843.0,88829.0,0.01689758]
[1766308642085,0.0053527,88843.0,88834.0,0.01125695]
[1766308642470,0.2748023,88854.0,88836.0,0.06753992]
[1766308642471,0.22978441,88854.0,88836.0,0.06753992]
[1766308642836,0.00564,88853.0,88839.0,0.01125631]
[1766308643244,0.00564,88853.0,88838.0,0.01125644]
[1766308643444,0.00564,88853.0,88839.0,0.01125631]
[1766308644148,0.00564,88853.0,88838.0,0.01125644]
[1766308644364,0.00564,88853.0,88835.0,0.00564]
[1766308644365,0.01125505,88849.0,88835.0,0.00564]
[1766308644598,0.01125479,88851.0,88835.0,0.00564]
[1766308644767,0.06752906,88851.0,88835.0,0.00564]
[1766308645156,0.01125492,88850.0,88835.0,0.00564]
[1766308645519,0.3126377,88850.0,88835.0,0.01689682]
[1766308645968,0.3126377,88850.0,88836.0,0.01125669]
[1766308646167,0.12988467,88852.0,88836.0,0.01125669]
[1766308646731,0.23542454,88853.0,88836.0,0.01125669]
[1766308647169,0.01125467,88852.0,88836.0,0.01125669]
[1766308647584,0.01125467,88852.0,88837.0,0.01125657]
[1766308647790,0.22417,88853.0,88837.0,0.01125657]
[1766308647966,0.22417,88853.0,88838.0,0.01125644]
[1766308648195,0.22417,88853.0,88839.0,0.01125631]
[1766308648316,0.22417,88853.0,88839.0,0.01031791]
[1766308648517,0.00564,88853.0,88842.0,0.01125593]
[1766308648924,0.00564,88853.0,88843.0,0.01125581]
[1766308649710,0.00564,88853.0,88842.0,0.01125593]
[1766308649914,0.00564,88853.0,88843.0,0.01125581]
[1766308650041,0.00564,88853.0,88842.0,0.01125593]
[1766308650479,0.0002,88855.0,88843.0,0.01125581]
[1766308651109,0.0002,88855.0,88844.0,0.01125568]
[1766308651282,0.0002,88855.0,88845.0,0.01125555]
[1766308651480,0.0002,88855.0,88844.0,0.05856581]
[1766308651683,0.0002,88855.0,88844.0,0.06982149]
[1766308652450,0.0002,88855.0,88844.0,0.05856581]
[1766308652585,0.0002,88855.0,88845.0,0.01125555]
[1766308652792,0.0002,88855.0,88844.0,0.06982149]
[1766308653020,0.0002,88855.0,88841.0,0.00564]
[1766308653192,0.01125606,88841.0,88832.0,0.02977432]
[1766308653392,0.00055,88844.0,88833.0,0.00564]
[1766308653393,0.3126377,88842.0,88833.0,0.00564]
[1766308653592,0.3126377,88842.0,88834.0,0.00564]
[1766308654908,0.11863,88843.0,88834.0,0.00564]
[1766308655229,0.11863,88843.0,88829.0,0.02977432]
[1766308655431,0.3126377,88840.0,88828.0,0.02977432]
[1766308655619,0.3126377,88840.0,88830.0,0.00564]
[1766308655790,0.3126377,88840.0,88830.0,0.01689745]
[1766308655995,0.3126377,88840.0,88830.0,0.00564]
[1766308657063,0.3126377,88840.0,88831.0,0.00564]
[1766308658513,0.4340677,88840.0,88831.0,0.00564]
[1766308660168,0.4340677,88840.0,88831.0,0.01689733]
[1766308660366,0.21632,88844.0,88831.0,0.01689733]
[1766308660593,0.00564,88845.0,88834.0,0.01125695]
[1766308661368,0.00564,88845.0,88836.0,0.01125669]
[1766308661569,0.00024463,88851.0,88840.0,0.01125619]
[1766308661749,0.00024463,88851.0,88842.0,0.01125593]
[1766308661953,0.00024463,88851.0,88843.0,0.06753473]
[1766308662188,0.00024463,88851.0,88844.0,0.01125568]
[1766308662512,0.00024463,88851.0,88843.0,0.01125581]
[1766308662860,0.00024463,88851.0,88842.0,0.01125593]
[1766308663057,0.00024463,88851.0,88841.0,0.00564]
[1766308663306,0.00024463,88851.0,88842.0,0.01125593]
[1766308663851,0.00024463,88851.0,88845.0,0.01125555]
[1766308664050,0.00024463,88851.0,88847.0,0.0112553]
[1766308664322,0.00024463,88851.0,88848.0,0.00564]
[1766308664548,0.00024463,88851.0,88848.0,0.01689517]
[1766308664740,0.00024463,88851.0,88848.0,0.07317102]
[1766308665139,0.01125289,88866.0,88848.0,0.07317102]
[1766308665140,0.42591453,88879.0,88860.0,0.01125365]
[1766308665353,9.8e-07,88870.0,88867.0,0.01125277]
[1766308665575,9.8e-07,88870.0,88868.0,0.00564]
[1766308665793,9.8e-07,88870.0,88869.0,0.01350302]
[1766308666013,0.19502,88888.0,88875.0,0.01125175]
[1766308666213,0.19502,88888.0,88875.0,0.005091]
[1766308666328,0.20662792,88888.0,88875.0,0.005091]
[1766308666533,0.01125023,88887.0,88875.0,0.005091]
[1766308666831,0.01125049,88885.0,88875.0,0.005091]
[1766308667031,0.01125036,88886.0,88875.0,0.005091]
[1766308667231,0.01125049,88885.0,88875.0,0.005091]
[1766308667673,0.20662792,88888.0,88875.0,0.005091]
[1766308667905,0.01125049,88885.0,88875.0,0.005091]
[1766308668065,0.01125061,88884.0,88875.0,0.005091]
[1766308668262,0.19537781,88888.0,88875.0,0.005091]
[1766308668462,0.01125023,88887.0,88875.0,0.005091]
[1766308668667,0.01125049,88885.0,88875.0,0.005091]
[1766308668850,0.01125049,88885.0,88871.0,0.00564]
[1766308668851,0.21669,88877.0,88871.0,0.00564]
[1766308669048,0.12143,88876.0,88861.0,0.01125353]
[1766308669271,0.31328681,88880.0,88862.0,0.00564]
[1766308669272,0.12143,88870.0,88862.0,0.00564]
[1766308669497,0.33812,88870.0,88862.0,0.00564]
[1766308670690,0.00036689,88863.0,88862.0,0.00564]
[1766308670880,8.9e-07,88863.0,88862.0,0.00564]
[1766308671787,8.9e-07,88863.0,88862.0,0.005274]
[1766308672171,8.9e-07,88863.0,88856.0,0.01125416]
[1766308672476,0.31252203,88872.0,88843.0,0.34413021]
[1766308672477,0.31252203,88866.0,88857.0,0.00564]
[1766308672784,0.12143,88868.0,88857.0,0.00564]
[1766308673371,0.12207911,88868.0,88855.0,0.01125429]
[1766308673613,0.12207911,88868.0,88856.0,0.01689416]
[1766308673614,0.12143,88868.0,88856.0,0.01689416]
[1766308673924,0.01125213,88872.0,88856.0,0.01689416]
[1766308673925,0.12143,88865.0,88856.0,0.00564]
[1766308674130,0.12143,88864.0,88856.0,0.00564]
[1766308674645,0.00064911,88863.0,88856.0,0.00564]
[1766308675602,0.00064911,88863.0,88855.0,0.00564]
[1766308676155,0.00564,88869.0,88864.0,0.01125315]
[1766308676338,0.00564,88869.0,88863.0,0.000549]
[1766308676535,0.00564,88869.0,88867.0,0.05626385]
[1766308676781,0.00564,88871.0,88868.0,0.01125264]
[1766308676992,0.00509,88871.0,88868.0,0.01125264]
[1766308677195,0.34376,88878.0,88871.0,0.000549]
[1766308677774,0.34376,88878.0,88867.0,0.01125277]
[1766308677978,0.00027599,88872.0,88868.0,0.01125264]
[1766308678198,0.00024542,88871.0,88869.0,0.01125251]
[1766308678461,0.34376,88878.0,88872.0,2.958e-05]
[1766308678871,0.34376,88878.0,88868.0,0.01125264]
[1766308679034,0.34376,88878.0,88866.0,0.01125289]
[1766308679206,0.34376,88878.0,88867.0,0.01125277]
[1766308679428,0.34376,88878.0,88866.0,0.01125289]
[1766308679629,0.34376,88878.0,88867.0,0.01125277]
[1766308680021,0.34376,88878.0,88865.0,0.05626512]
[1766308680260,0.34376,88878.0,88868.0,0.01125264]
[1766308680829,0.33812,88877.0,88863.0,0.00564]
[1766308681069,0.21669,88877.0,88865.0,0.01125302]
[1766308681275,0.12143,88875.0,88863.0,0.01689327]
[1766308681478,0.12143,88875.0,88864.0,0.01125315]
[1766308681679,0.12143,88875.0,88865.0,0.01125302]
[1766308681877,0.12143,88875.0,88866.0,0.01125289]
[1766308682103,0.12143,88875.0,88865.0,0.01125302]
[1766308682308,0.21669,88875.0,88863.0,0.00564]
[1766308682562,0.33812,88875.0,88864.0,0.01125315]
[1766308682785,0.33812,88875.0,88867.0,0.01125277]
[1766308683024,0.01125036,88886.0,88863.0,0.00564]
[1766308683026,0.07394781,88888.0,88875.0,0.000304]
[1766308683254,0.07394781,88888.0,88882.0,0.01125087]
[1766308683471,0.0002,88912.0,88893.0,0.01124947]
[1766308683696,0.0002,88912.0,88894.0,0.00564]
[1766308683697,0.01124745,88909.0,88894.0,0.00564]
[1766308683910,0.01124732,88910.0,88894.0,0.00564]
[1766308683911,0.42570725,88910.0,88894.0,0.00564]
[1766308684119,0.01155438,88912.0,88894.0,0.00564]
[1766308684120,0.0112472,88911.0,88894.0,0.00564]
[1766308684332,0.01155438,88912.0,88894.0,0.005395]
[1766308684333,0.05856581,88905.0,88894.0,0.005395]
[1766308684777,0.06981377,88905.0,88894.0,0.005395]
[1766308685129,0.06420581,88905.0,88894.0,0.005395]
[1766308685332,0.11554,88903.0,88894.0,0.005395]
[1766308686776,0.33291,88903.0,88894.0,0.005395]
[1766308688019,0.00093771,88893.0,88892.0,0.0112496]
[1766308688223,0.00093771,88893.0,88881.0,0.01125099]
[1766308688224,0.00038871,88893.0,88881.0,0.01125099]
[1766308688422,0.00038871,88893.0,88848.0,0.4502047]
[1766308688423,0.00038871,88893.0,88889.0,0.01124998]
[1766308688625,0.00038871,88893.0,88888.0,0.01125011]
[1766308689493,0.00038871,88893.0,88889.0,0.01124998]
[1766308689701,0.00038871,88893.0,88884.0,0.05625284]
[1766308689908,0.00038871,88893.0,88886.0,0.01125036]
[1766308690087,0.00038871,88893.0,88887.0,0.01125023]
[1766308690293,0.00038871,88893.0,88888.0,0.01125011]
[1766308690501,0.00038871,88893.0,88887.0,0.01125023]
[1766308690701,0.00038871,88893.0,88888.0,0.01689011]
[1766308690949,0.00038871,88893.0,88890.0,0.01124985]
[1766308691572,0.00038871,88893.0,88886.0,0.01125036]
[1766308691787,0.00038871,88893.0,88889.0,0.00564]
[1766308691989,0.00038871,88893.0,88890.0,0.01124985]
[1766308692393,0.00038871,88893.0,88889.0,0.01688998]
[1766308692604,0.00038871,88893.0,88881.0,0.01125099]
[1766308692808,0.000549,88889.0,88885.0,0.01689049]
[1766308693016,0.00038871,88893.0,88887.0,0.01125023]
[1766308693225,0.11618911,88899.0,88888.0,0.01125011]
[1766308693433,0.11618911,88899.0,88888.0,0.06750055]
[1766308693663,0.11618911,88899.0,88884.0,0.01125061]
[1766308693664,0.33291,88898.0,88884.0,0.01125061]
[1766308693898,0.33291,88898.0,88885.0,0.00564]
[1766308694108,0.00035014,88893.0,88885.0,0.00564]
[1766308694737,0.00055013,88889.0,88885.0,0.00564]
[1766308694943,0.00035014,88893.0,88886.0,0.01125036]
[1766308695152,0.00045845,88886.0,88885.0,0.01689049]
[1766308695567,0.00035014,88893.0,88886.0,0.01125036]
[1766308695780,0.00035014,88893.0,88887.0,0.01125023]
[1766308696415,0.00035014,88893.0,88888.0,0.01125011]
[1766308696630,0.00035014,88893.0,88885.0,0.00564]
[1766308696845,0.00035014,88893.0,88810.0,0.4481]
[1766308696847,0.00035014,88893.0,88875.0,0.02977432]
[1766308696848,0.000549,88888.0,88875.0,0.02977432]
[1766308697057,0.000549,88888.0,88865.0,0.28550735]
[1766308697058,0.01125074,88883.0,88866.0,0.01125289]
[1766308697276,0.42625725,88885.0,88866.0,0.01125289]
[1766308697277,0.11554,88879.0,88867.0,0.00564]
[1766308697484,0.33291,88879.0,88867.0,0.00564]
[1766308698061,0.21737,88879.0,88867.0,0.00564]
[1766308698262,0.21737,88879.0,88857.0,0.04102835]
[1766308698263,0.000549,88867.0,88857.0,0.04102835]
[1766308698489,0.000549,88867.0,88858.0,0.00564]
[1766308698690,0.11618911,88871.0,88858.0,0.00564]
[1766308699007,0.11554,88867.0,88859.0,0.00564]
[1766308699389,0.11554,88866.0,88859.0,0.005091]
[1766308699753,0.11554,88866.0,88853.0,0.01125454]
[1766308699866,0.11618911,88866.0,88853.0,0.01125454]
[1766308700078,0.11618911,88866.0,88848.0,0.01125517]
[1766308700079,0.11554,88861.0,88848.0,0.02977432]
[1766308700276,0.11554,88861.0,88847.0,0.0112553]
[1766308700489,0.21737,88862.0,88844.0,0.04103]
[1766308700490,0.21737,88860.0,88844.0,0.04103]
[1766308700690,0.21737,88860.0,88829.0,0.05856581]
[1766308700691,0.11554,88856.0,88842.0,0.02977432]
[1766308700915,0.21737,88856.0,88845.0,0.01125555]
[1766308701141,0.42570725,88860.0,88843.0,0.01689581]
[1766308701142,0.11554,88853.0,88843.0,0.00564]
[1766308701357,0.11554,88853.0,88840.0,0.01125619]
[1766308701358,0.11554,88853.0,88838.0,0.02977432]
[1766308701614,0.11554,88852.0,88840.0,0.01125619]
[1766308701809,0.00564,88856.0,88846.0,0.01125543]
[1766308702009,0.11554,88855.0,88842.0,0.01125593]
[1766308702234,0.0004263,88854.0,88845.0,0.01125555]
[1766308702425,0.0004263,88854.0,88846.0,0.01125543]
[1766308702632,0.0004263,88854.0,88843.0,0.01125581]
[1766308702849,0.0004263,88854.0,88846.0,0.01125543]
[1766308703280,3e-07,88854.0,88846.0,0.01125543]
[1766308703503,3e-07,88854.0,88849.0,0.01135505]
[1766308703912,3e-07,88854.0,88849.0,0.0001]
[1766308704344,3e-07,88854.0,88849.0,0.01135505]
[1766308704542,3e-07,88854.0,88851.0,0.06752877]
[1766308705070,3e-07,88854.0,88851.0,0.08103452]
[1766308706188,3e-07,88854.0,88851.0,0.06752877]
[1766308706754,3e-07,88854.0,88851.0,0.01125479]
[1766308706963,3e-07,88854.0,88851.0,0.06752848]
[1766308707435,3e-07,88854.0,88851.0,0.01125479]
[1766308707587,3e-07,88854.0,88850.0,0.01125492]
[1766308707787,3e-07,88854.0,88851.0,0.08103427]
[1766308708201,3e-07,88854.0,88847.0,0.0112553]
[1766308708202,0.34257,88852.0,88845.0,0.00564]
[1766308708405,0.34257,88852.0,88833.0,0.04504]
[1766308708406,0.21776,88848.0,88843.0,0.00564]
[1766308708606,0.34257,88846.0,88840.0,0.00564]
[1766308708785,0.00162511,88845.0,88840.0,0.00564]
[1766308709211,0.34257,88846.0,88840.0,0.00564]
[1766308709411,0.01288066,88845.0,88838.0,0.00564]
[1766308709640,0.01125568,88844.0,88828.0,0.01125771]
[1766308709980,0.01125568,88844.0,88826.0,0.06754739]
[1766308709981,0.12481,88838.0,88824.0,0.01125821]
[1766308710176,0.12481,88838.0,88825.0,0.00564]
[1766308710177,0.12481,88837.0,88825.0,0.00564]
[1766308710474,0.12481,88837.0,88825.0,0.00574724]
[1766308710685,0.00162511,88836.0,88826.0,0.00564]
[1766308710886,0.12481,88837.0,88827.0,0.00564]
[1766308712316,0.21776,88838.0,88827.0,0.01689783]
[1766308713751,0.00564,88844.0,88838.0,0.000549]
[1766308714171,0.13045,88844.0,88833.0,0.01125707]
[1766308715016,0.13045,88844.0,88834.0,0.01125695]
[1766308715227,0.00564,88844.0,88835.0,0.01125682]
[1766308715439,0.005091,88844.0,88838.0,0.01125644]
[1766308716270,0.2234,88849.0,88838.0,0.01125644]
[1766308716922,0.2234,88849.0,88837.0,0.01125657]
[1766308717716,0.2234,88849.0,88835.0,0.01689682]
[1766308717941,0.2234,88849.0,88836.0,0.01125669]
[1766308718508,0.2234,88849.0,88837.0,0.01125657]
[1766308718732,0.2234,88849.0,88838.0,0.01125644]
[1766308719116,0.119909,88838.0,88834.0,0.0001]
[1766308719429,0.33457,88837.0,88830.0,0.00564]
[1766308721855,0.000549,88830.0,88825.0,0.00010724]
[1766308722084,0.000549,88830.0,88828.0,0.00564]
[1766308722316,0.000549,88830.0,88827.0,0.00564]
[1766308722635,0.00162511,88833.0,88827.0,0.00564]
[1766308723130,0.00162511,88833.0,88825.0,0.00010724]
[1766308723557,0.21521,88834.0,88826.0,0.00564]
[1766308724294,0.11936,88836.0,88826.0,0.00564]
[1766308724526,0.11936,88836.0,88827.0,0.01125783]
[1766308724760,0.11936,88836.0,88826.0,0.01689796]
[1766308724992,0.11936,88836.0,88827.0,0.01125783]
[1766308725454,0.11936,88836.0,88826.0,0.00564]
[1766308725666,0.21521,88835.0,88825.0,0.00010724]
[1766308725895,0.00162511,88834.0,88825.0,0.00574724]
[1766308726189,0.33457,88830.0,88825.0,0.00574724]
[1766308726406,0.21521,88830.0,88825.0,0.00574724]
[1766308726638,0.11936,88828.0,88825.0,0.00010724]
[1766308726862,0.11936,88827.0,88825.0,2.4e-07]
[1766308727726,0.33457,88826.0,88825.0,2.4e-07]
[1766308731240,0.334463,88826.0,88825.0,2.4e-07]
[1766308734621,0.21521,88826.0,88825.0,2.4e-07]
[1766308734786,0.125,88830.0,88825.0,2.4e-07]
[1766308735597,0.00564,88830.0,88825.0,2.4e-07]
[1766308736038,0.11936,88828.0,88825.0,2.4e-07]
[1766308738129,0.11936,88827.0,88825.0,2.4e-07]
[1766308738750,0.12098511,88827.0,88825.0,2.4e-07]
[1766308739517,0.33457,88826.0,88825.0,2.4e-07]
[1766308743075,0.01125847,88822.0,88814.0,0.03425156]
[1766308743367,0.01125809,88825.0,88808.0,0.03980631]
[1766308743368,0.00162511,88821.0,88808.0,0.03980631]
[1766308743567,0.01689821,88824.0,88808.0,0.03980631]
[1766308743568,0.21521,88818.0,88808.0,0.01136024]
[1766308743820,0.11936,88816.0,88808.0,0.01136024]
[1766308744188,0.11936,88816.0,88808.0,0.0001]
[1766308744399,0.33457,88814.0,88808.0,0.0001]
[1766308744594,0.11936,88813.0,88808.0,0.0001]
[1766308745023,0.11881,88813.0,88808.0,0.0001]
[1766308745397,0.11881,88813.0,88808.0,0.01136024]
[1766308745580,0.11885024,88813.0,88808.0,0.01136024]
[1766308745776,0.11885024,88813.0,88808.0,0.0001]
[1766308746990,0.21422,88811.0,88806.0,0.00564]
[1766308747194,4.024e-05,88813.0,88805.0,0.01690062]
[1766308747660,4.024e-05,88813.0,88807.0,0.01126037]
[1766308748634,4.024e-05,88813.0,88806.0,0.0112605]
[1766308749000,4.024e-05,88813.0,88805.0,0.00564]
[1766308749001,0.11463,88811.0,88805.0,0.00564]
[1766308749206,0.11463,88811.0,88804.0,0.00564]
[1766308749207,0.21584511,88811.0,88804.0,0.00564]
[1766308749413,0.11463,88810.0,88804.0,0.00564]
[1766308749627,0.11463,88810.0,88798.0,0.01136151]
[1766308749836,0.11463,88810.0,88799.0,0.00564]
[1766308749837,0.001099,88804.0,88799.0,0.00564]
[1766308750049,0.32885,88808.0,88800.0,0.01126126]
[1766308750274,0.32885,88808.0,88801.0,0.01126113]
[1766308751104,0.32885,88808.0,88802.0,0.011261]
[1766308751312,0.32885,88808.0,88803.0,0.01126088]
[1766308751938,0.21422,88808.0,88803.0,0.01126088]
[1766308752165,0.21422,88808.0,88799.0,0.01690138]
[1766308752386,0.11463,88805.0,88801.0,0.01126113]
[1766308752860,0.11463,88811.0,88802.0,0.011261]
[1766308753322,0.11463,88811.0,88803.0,0.01126088]
[1766308753524,0.11463,88811.0,88801.0,0.01126113]
[1766308754489,0.11463,88811.0,88802.0,0.011261]
[1766308754667,0.11463,88811.0,88801.0,0.01126113]
[1766308755084,0.11463,88811.0,88799.0,0.00564]
[1766308755405,0.21422,88810.0,88799.0,0.00564]
[1766308755607,0.32885,88810.0,88799.0,0.00564]
[1766308756077,0.32885,88810.0,88801.0,0.01126113]
[1766308757639,0.00564,88812.0,88802.0,0.011261]
[1766308758044,0.00564,88812.0,88803.0,0.01126088]
[1766308758598,0.00564,88812.0,88804.0,0.01126075]
[1766308758983,0.00564,88812.0,88802.0,0.011261]
[1766308759182,0.00564,88812.0,88803.0,0.01126088]
[1766308759406,0.00564,88812.0,88804.0,0.01126075]
[1766308760631,0.00564,88812.0,88800.0,0.01126126]
[1766308760632,0.000549,88804.0,88799.0,0.00564]
[1766308761021,0.000549,88804.0,88798.0,0.0001]
[1766308761022,0.11463,88804.0,88798.0,0.0001]
[1766308761336,0.11463,88804.0,88789.0,0.03970631]
[1766308761337,0.00055,88799.0,88789.0,0.03970631]
[1766308761518,0.37148596,88810.0,88789.0,0.00564]
[1766308761519,0.11463,88792.0,88789.0,0.00564]
[1766308761721,0.11463,88792.0,88787.0,0.00564]
[1766308761722,0.11463,88791.0,88787.0,0.00564]
[1766308762397,0.11463,88791.0,88787.0,0.005091]
[1766308762615,0.11463,88791.0,88779.0,0.01126392]
[1766308762616,0.11463,88791.0,88780.0,0.01126379]
[1766308762772,0.11463,88791.0,88784.0,0.00564]
[1766308763899,0.11463,88791.0,88777.0,0.0001]
[1766308763900,0.11463,88789.0,88777.0,0.0001]
[1766308764045,0.0112624,88791.0,88777.0,0.0001]
[1766308764046,0.00055,88784.0,88777.0,0.0001]
[1766308764249,0.00055,88784.0,88773.0,0.0004]
[1766308764250,0.12498,88779.0,88773.0,0.0004]
[1766308764465,0.12498,88776.0,88771.0,0.00564]